[Event "3rd VIZAG GM-Open 2022"]
[Site "Visakapatnam"]
[Date "2022.06.13"]
[Round "2.3"]
[White "Harsha Bharathakoti"]
[Black "Manish Anto Cristiano F"]
[Result "1-0"]
[ECO "D10"]
[WhiteElo "2547"]
[BlackElo "2071"]
[Annotator "TA"]
[PlyCount "97"]
[EventDate "2022.06.13"]
[EventType "swiss"]
[EventCountry "IND"]
[SourceTitle "playchess.com"]
[Source "ChessBase"]
[SourceQuality "1"]
[TimeControl "5400+30"]

{[%evp 13,97,25,21,16,24,21,17,22,33,20,20,23,47,14,20,18,10,7,6,0,4,0,27,0,0,0,0,0,0,0,0,-5,-14,-1,0,0,0,0,0,0,0,0,0,0,0,0,0,0,0,0,0,0,0,0,0,0,0,0,0,-52,-52,-52,-52,-420,-420,-564,0,0,0,0,29957,29958,468,468,7308,6645,29975,420,326,0,29975,29975,29971,5214,5110,94]} 1. d4 {[%emt 0:00:43]} d5 {[%emt 0:00:20]} 2. c4 {[%emt 0:00:24]} c6 {[%emt 0:00:08]} 3. cxd5 {[%emt 0:02:13]} cxd5 {[%emt 0:00:09]} 4. Bf4 {[%emt 0:00:03]} Nf6 {[%emt 0:02:16]} 5. Nc3 {[%emt 0:00:06]} e6 {[%emt 0:01:41]} 6. e3 {[%emt 0:00:31]} Bd6 {[%emt 0:01:03]} 7. Bxd6 {[%emt 0:08:08]} Qxd6 {[%emt 0:00:09]} 8. f4 {[%emt 0:00:02] D10: Slav Defence: 3 cxd5 (without early Nf3) and 3 Nc3.} a6 {[%emt 0:01:19]} 9. Bd3 {[%emt 0:03:14]} b5 {[%emt 0:00:45]} 10. Nf3 {[%emt 0:00:07] The position is equal.} Bb7 {[%emt 0:04:00]} 11. O-O {[%emt 0:13:05]} O-O {[%emt 0:06:52]} 12. Ne5 {[%emt 0:14:40]} Ne4 {[%emt 0:05:28] [#]} 13. Qf3 $146 {[%emt 0:19:47][%cal Rc3e4]} ({Predecessor:} 13. a4 f6 14. Nf3 b4 15. Na2 a5 16. Nc1 Nd7 17. Nb3 Rfc8 18. Qe2 Qb6 19. Bb5 {½-½ (30) Kosic,D (2452)-Ilincic,Z (2422) Budapest 2020}) 13... f5 {[%emt 0:05:57]} (13... Nxc3 {looks sharper.} 14. bxc3 Nd7 15. Qh3 h6) 14. Bxe4 {[%emt 0:05:57]} dxe4 {[%emt 0:01:20]} 15. Qe2 {[%emt 0:05:34]} Nd7 {[%emt 0:04:48][%cal Bb8d7,Bd7b6,Bb6c4][%mdl 32]} 16. Rfd1 {[%emt 0:03:50]} Rac8 {[%emt 0:05:37]} 17. Rac1 {[%emt 0:00:27]} Rc7 {[%emt 0:03:15]} 18. a3 {[%emt 0:04:08]} Rfc8 {[%emt 0:03:43]} 19. Qd2 {[%emt 0:04:31]} Nb6 {[%emt 0:05:59]} 20. Ne2 {[%emt 0:01:52]} Nc4 {[%emt 0:00:43]} 21. Nxc4 {[%emt 0:00:04]} Rxc4 {[%emt 0:00:09]} 22. Rxc4 {[%emt 0:00:08]} Rxc4 {[%emt 0:00:22]} 23. Rc1 {[%emt 0:00:20]} Qc7 {[%emt 0:02:24]} 24. Rxc4 {[%emt 0:02:11]} Qxc4 $11 {[%emt 0:00:10][%mdl 4096] Endgame KQB-KQN} 25. Kf2 {[%emt 0:00:02]} Bd5 {[%emt 0:01:37]} 26. h3 {[%emt 0:01:35]} Qc7 {[%emt 0:03:43]} 27. g4 {[%emt 0:02:21]} g6 {[%emt 0:03:08]} 28. gxf5 {[%emt 0:05:31]} gxf5 {[%emt 0:01:20]} 29. Kg3 {[%emt 0:00:29]} Qc4 {[%emt 0:00:20]} 30. Kf2 {[%emt 0:00:14]} Qc7 {[%emt 0:00:57]} 31. Nc3 {[%emt 0:02:20]} Qc4 {[%emt 0:00:10]} 32. Qe2 {[%emt 0:01:21]} Qb3 {[%emt 0:01:01]} 33. Kg3 {[%emt 0:00:26]} Bc4 {[%emt 0:00:22]} 34. Qg2 {[%emt 0:00:32]} a5 {[%emt 0:00:59]} 35. Kh4+ {[%emt 0:00:23]} Kf7 {[%emt 0:00:07] [#] aiming for ...b4.} 36. Qd2 {[%emt 0:00:38]} (36. Qg5 $11) 36... b4 $15 {[%emt 0:00:46]} 37. axb4 {[%emt 0:00:03]} axb4 {[%emt 0:00:06]} 38. Nd1 {[%emt 0:00:02][%mdl 8192] [#]} ({White must play} 38. Nb1 $1 $15) 38... Qd3 $1 $19 {[%emt 0:00:10]} 39. Qxb4 {[%emt 0:00:52][%cal Oh4g5]} Qxd1 $2 {[%emt 0:00:08]} (39... Qf1 $19 {Strongly threatening ...Be2.} 40. Qd2 Be2) 40. Qxc4 {[%emt 0:00:08] KQ-KQ} Qe1+ {[%emt 0:01:31]} 41. Kh5 {[%emt 0:00:03]} Kf6 $2 {[%emt 0:00:13][%mdl 8192]} (41... Qxe3 $11 42. Qc7+ Kg8 43. Qd8+ Kf7 44. Qc7+ Kg8 45. Qd8+ Kf7 46. Qc7+) 42. Qc3 {[%emt 0:01:53]} Qe2+ {[%emt 0:03:48]} 43. Kh6 {[%emt 0:00:05] White threatens d5+ and mate.} Kf7 {[%emt 0:00:16]} (43... Ke7 $142 44. Qc7+ Kf8) 44. Qc7+ $18 {[%emt 0:00:47]} Ke8 {[%emt 0:00:09]} 45. Qc8+ {[%emt 0:00:04]} (45. Kg7 $142 Qh5 46. Kf6 Qg6+ 47. Ke5 Qg2 48. Kxe6 Qg8+ 49. Ke5 Qh8+ 50. Kxf5 Qf8+ 51. Kxe4) 45... Ke7 {[%emt 0:00:07]} 46. Qc7+ $2 {[%emt 0:00:03]} (46. d5 $18 exd5 47. Qc7+ (47. Qxf5 Qxe3 48. Qe5+ Kf8 $11) 47... Ke8 48. Qe5+ Kf8 49. Qxf5+ Ke8 50. Qc8+ (50. Qxh7 Qxe3 51. Kg5 Qd4 $11) 50... Ke7 51. Qc5+ (51. Kxh7 Qh5+ 52. Kg7 Qf7+ 53. Kh6 Qf8+ 54. Qxf8+ Kxf8 $11) 51... Ke8 52. f5 (52. Kxh7 Qh5+ 53. Kg7 Qf7+ 54. Kh6 Qf8+ 55. Qxf8+ Kxf8 $11) 52... Qa6+ 53. Kxh7) 46... Ke8 {[%emt 0:00:05]} 47. Kg7 {[%emt 0:01:30]} Qh5 {[%emt 0:01:20]} 48. Qc8+ {[%emt 0:00:07]} Ke7 {[%emt 0:00:05]} 49. Qf8+ {[%emt 0:00:03] Weighted Error Value: White=0.53/Black=0.43} 1-0

[Event "3rd VIZAG GM-Open 2022"]
[Site "Visakapatnam"]
[Date "2022.06.13"]
[Round "2.4"]
[White "Krishnan Ritvik"]
[Black "Savchenko, Boris"]
[Result "0-1"]
[ECO "B81"]
[WhiteElo "2023"]
[BlackElo "2524"]
[Annotator "TA"]
[PlyCount "60"]
[EventDate "2022.06.13"]
[EventType "swiss"]
[EventCountry "IND"]
[SourceTitle "playchess.com"]
[Source "ChessBase"]
[SourceQuality "1"]
[TimeControl "5400+30"]

{[%evp 12,60,29,32,36,6,22,14,11,19,15,0,0,0,68,77,70,43,35,0,0,0,0,0,315,311,355,339,1033,1010,876,693,661,-150,-70,-77,-156,-135,-31,-594,-591,-756,-446,-585,-554,-555,-573,-590,-595,-694,-667]} 1. e4 {[%emt 0:00:02]} c5 {[%emt 0:13:03]} 2. Nf3 {[%emt 0:00:03]} d6 {[%emt 0:00:13]} 3. d4 {[%emt 0:00:01]} cxd4 {[%emt 0:00:07]} 4. Nxd4 {[%emt 0:00:02]} Nf6 {[%emt 0:00:07]} 5. Nc3 {[%emt 0:00:01]} a6 {[%emt 0:00:07]} 6. h3 {[%emt 0:00:02]} e6 {[%emt 0:00:08]} 7. g4 {[%emt 0:00:02]} h6 {[%emt 0:00:06] B81: Sicilian Scheveningen: Keres Attack.} 8. f4 {[%emt 0:00:03]} b5 {[%emt 0:00:15] Hoping for ...b4.} 9. Bg2 {[%emt 0:01:33] Threatens to win with e5.} Bb7 {[%emt 0:11:40] The position is equal.} 10. a3 {[%emt 0:01:59]} Nbd7 {[%emt 0:00:49]} 11. O-O {[%emt 0:07:14]} Rc8 {[%emt 0:09:23]} 12. Qe2 {[%emt 0:11:15] [#]} Nb6 $146 {[%emt 0:03:44]} (12... Rc4 $11 13. Nb3 Qc7) ({Predecessor:} 12... e5 13. Nf5 g6 14. Ne3 exf4 15. Rxf4 Bg7 16. a4 bxa4 17. e5 dxe5 18. Bxb7 exf4 {½-½ (47) Naiditsch,A (2663)-Shomoev,A (2556) Moscow 2007}) 13. g5 $1 $14 {[%emt 0:05:18]} e5 {[%emt 0:05:49]} 14. gxf6 {[%emt 0:13:16]} (14. Nf5 $5 {[%cal Rg5f6]} hxg5 15. fxg5 $14) 14... exd4 {[%emt 0:00:38] [#]} 15. e5 $1 {[%emt 0:06:50]} Bxg2 $1 {[%emt 0:00:25]} 16. exd6+ {[%emt 0:00:30]} Kd7 {[%emt 0:00:10]} 17. Qxg2 {[%emt 0:06:37] Strongly threatening Qb7+.} dxc3 $4 {[%emt 0:00:37][%mdl 8192]} (17... Bxd6 $11 {and Black is okay.} 18. fxg7 dxc3 $1 19. gxh8=N (19. gxh8=B Qxh8 20. Kh1 cxb2 $11) 19... Qxh8) 18. Qb7+ $1 $18 {[%emt 0:00:31]} (18. fxg7 Bxg7 $1 {[%mdl 512]} 19. Be3 (19. Qxg7 $2 Rg8 $19) (19. Qg4+ $2 Kc6 $19) 19... Rg8 $17) 18... Ke6 {[%emt 0:00:18]} 19. Be3 $1 {[%emt 0:05:18] White threatens f5+ and mate.} Nd5 $2 {[%emt 0:12:43]} (19... cxb2 20. f5+ (20. Rae1 Kxf6 21. Bd4+ Kg6 $11) 20... Ke5 21. Rae1 Kxd6 22. Rd1+ Ke5 23. Rxd8 Rxd8 24. Qxf7) (19... Kxf6 20. Rad1 (20. Bd4+ Kg6 $11) 20... Nd7) 20. f5+ {[%emt 0:04:03]} Ke5 {[%emt 0:01:41] [#]} 21. Bd4+ $1 {[%emt 0:05:05][%mdl 512]} Kxd6 {[%emt 0:00:11]} 22. Rad1 $2 {[%emt 0:00:36] [#]} (22. Bf2 $18 {Rad1 would kill now.} Rc7 23. Qxa6+ Kd7 24. Rad1) 22... Qc7 $1 $17 {[%emt 0:03:36]} 23. Qxa6+ {[%emt 0:10:44]} Qc6 {[%emt 0:00:10]} 24. Qa7 {[%emt 0:00:36]} gxf6 {[%emt 0:25:22]} (24... Rc7 $17 25. Qb8 cxb2) 25. Rfe1 $2 {[%emt 0:03:53][%mdl 8192]} (25. Qxf7 Qd7 26. Be5+ Kc6 27. Qxd7+ Kxd7 $17) (25. Bxf6 $15 Rc7 26. Be5+ Kxe5 27. Qd4+ Kd6 28. Qxh8 Qc5+ 29. Kh1) 25... Rg8+ $19 {[%emt 0:01:03][%cal Bh8g8,Bg8g5,Bg5f5][%mdl 32] Black is clearly winning.} 26. Kf2 {[%emt 0:01:38]} Rg5 {[%emt 0:01:06] And now ...cxb2 would win.} 27. Qxf7 {[%emt 0:02:02][%csl Gf5,Gf7][%cal Re1e6]} Rxf5+ {[%emt 0:00:11]} ({Don't go for} 27... Qd7 $2 28. Re6+ (28. Be5+ $2 Kc6 $19) 28... Kc7 29. Bb6+ (29. Rxf6 $2 Nxf6 30. Be5+ Bd6 $19) 29... Nxb6 30. Rxd7+ Nxd7 31. b4 $19) 28. Kg1 {[%emt 0:00:10][%csl Gf7][%cal Re1e6]} Qd7 {[%emt 0:00:57] Prevents Re6+.} 29. Bc5+ {[%emt 0:01:53]} Kc7 {[%emt 0:00:55]} 30. Bb6+ {[%emt 0:01:32] [#]} Kc6 $1 {[%emt 0:00:10] Black used his chance.  Weighted Error Value: White=0.69/Black=0.40} ({And not} 30... Nxb6 31. Rxd7+ Nxd7 32. Rd1 $17) 0-1

[Event "3rd VIZAG GM-Open 2022"]
[Site "Visakapatnam"]
[Date "2022.06.13"]
[Round "2.5"]
[White "Fedorov, Alexei"]
[Black "Nguyen, Thanh Thuy Tien"]
[Result "1-0"]
[ECO "B20"]
[WhiteElo "2529"]
[BlackElo "1996"]
[Annotator "TA"]
[PlyCount "79"]
[EventDate "2022.06.13"]
[EventType "swiss"]
[EventCountry "IND"]
[SourceTitle "playchess.com"]
[Source "ChessBase"]
[SourceQuality "1"]
[TimeControl "5400+30"]

{[%evp 9,79,22,40,43,50,56,55,56,41,42,56,28,68,72,111,125,141,134,194,184,175,182,181,178,219,203,200,205,207,179,186,170,182,194,183,177,185,178,219,225,254,174,186,179,186,135,193,186,267,279,316,283,392,389,358,366,539,540,826,798,1024,1011,1324,1327,1947,1805,5843,5816,4778,2063,29990,29991]} 1. e4 {[%emt 0:02:04] Babula,V} c5 {[%emt 0:00:08]} 2. Ne2 {[%emt 0:00:19]} d6 {[%emt 0:00:57]} 3. g3 {[%emt 0:00:27]} Nc6 {[%emt 0:00:15]} 4. Bg2 {[%emt 0:00:25]} g6 {[%emt 0:00:10]} 5. c3 {[%emt 0:02:43]} h5 {[%emt 0:05:44]} 6. h3 {[%emt 0:02:52] B20: Sicilian: Unusual White 2nd moves.} e5 {[%emt 0:10:50]} 7. d4 {[%emt 0:01:17] [#]} exd4 $146 {[%emt 0:05:35]} ({Predecessor:} 7... Bg7 8. Be3 b6 9. Na3 Nge7 10. dxc5 dxc5 11. Qxd8+ Nxd8 12. Nb5 O-O 13. Nc7 Rb8 {½-½ (40) Vallejo Pons,F (2650)-Nakamura,H (2644) Cuernavaca 2006 CBM 112 [Babula,V]}) 8. cxd4 {[%emt 0:00:08] White is slightly better.} Bg7 {[%emt 0:01:49][%cal Rc6d4]} 9. dxc5 {[%emt 0:02:12]} dxc5 {[%emt 0:02:35]} 10. Qxd8+ {[%emt 0:00:06]} Kxd8 {[%emt 0:05:15]} 11. Nbc3 {[%emt 0:00:28][%cal Bb1c3,Bc3b5,Bb5d6,Bd6b7,Bb7c5,Bc5b3,Bb3d4,Bd4c6,Bc6b4][%mdl 32] White leaves nothing to chance now.} Nd4 {[%emt 0:02:28]} 12. Nxd4 {[%emt 0:02:41]} cxd4 {[%emt 0:01:04] [#]} 13. Nb5 {[%emt 0:02:01]} Bd7 {[%emt 0:13:46]} (13... Ne7 $16) 14. Nd6 $18 {[%emt 0:01:07][%csl LRb7,LRf7]} Ke7 {[%emt 0:00:10]} 15. Nxb7 {[%emt 0:00:40]} Rb8 {[%emt 0:09:49]} 16. Nc5 {[%emt 0:04:01]} Bb5 {[%emt 0:00:52]} 17. Bg5+ {[%emt 0:04:37]} f6 {[%emt 0:02:30]} 18. Bf4 {[%emt 0:03:57]} Rc8 {[%emt 0:01:05]} 19. Nb3 {[%emt 0:03:25]} d3 {[%emt 0:08:19]} 20. Nd4 {[%emt 0:01:01]} Ba6 {[%emt 0:00:50]} 21. Rc1 {[%emt 0:06:51]} Rxc1+ {[%emt 0:11:16]} 22. Bxc1 {[%emt 0:00:05]} Nh6 {[%emt 0:01:39]} 23. Nc6+ {[%emt 0:04:54]} Kd6 {[%emt 0:02:24] [#]} 24. Nb4 {[%emt 0:01:17]} ({But not} 24. Nxa7 Nf7 25. Be3 h4 26. gxh4 Rxh4) 24... Bb5 {[%emt 0:00:06]} 25. Bf1 {[%emt 0:03:51]} f5 {[%emt 0:03:38]} 26. Bxd3 {[%emt 0:07:02]} Bxd3 {[%emt 0:00:11]} 27. e5+ {[%emt 0:00:28]} (27. Nxd3 $18 {Strongly threatening Nf4.} fxe4 28. Nf4) 27... Kxe5 {[%emt 0:02:02]} (27... Bxe5 $16 28. Nxd3 Nf7) 28. Nxd3+ {[%emt 0:00:09]} Ke4 {[%emt 0:00:31]} (28... Kd6 {keeps fighting.} 29. Bf4+ Kd7) 29. Ke2 {[%emt 0:01:27]} Re8 {[%emt 0:04:53]} 30. Rd1 {[%emt 0:02:35] And now Nc5+ would win.} Kd4+ {[%emt 0:04:01]} 31. Kf1 {[%emt 0:00:42]} Kc4 {[%emt 0:00:16]} 32. Nf4 {[%emt 0:00:35]} h4 {[%emt 0:00:44]} (32... Ng8 $142 33. b3+ Kc3) 33. Rd7 {[%emt 0:01:18]} Bd4 {[%emt 0:00:34]} 34. b3+ {[%emt 0:00:30]} Kc3 {[%emt 0:00:20]} 35. Ne2+ {[%emt 0:00:23]} Rxe2 {[%emt 0:00:34]} 36. Kxe2 {[%emt 0:00:03]} hxg3 {[%emt 0:00:08]} 37. fxg3 {[%emt 0:00:04]} f4 {[%emt 0:00:27]} 38. Bd2+ {[%emt 0:00:17]} Kb2 {[%emt 0:00:09]} 39. Rxd4 {[%emt 0:00:30]} fxg3 {[%emt 0:00:08]} 40. Bxh6 {[%emt 0:00:08] Weighted Error Value: White=0.09 (flawless) /Black=0.54} 1-0

[Event "3rd VIZAG GM-Open 2022"]
[Site "Visakapatnam"]
[Date "2022.06.13"]
[Round "2.6"]
[White "Mayank Chakraborty"]
[Black "Mitrabha, Guha"]
[Result "1-0"]
[ECO "C70"]
[WhiteElo "2015"]
[BlackElo "2500"]
[Annotator "TA"]
[PlyCount "139"]
[EventDate "2022.06.13"]
[EventType "swiss"]
[EventCountry "IND"]
[SourceTitle "playchess.com"]
[Source "ChessBase"]
[SourceQuality "1"]
[TimeControl "5400+30"]

{[%evp 9,139,43,33,7,81,78,75,90,90,89,84,62,67,71,112,114,136,106,196,190,198,206,197,200,189,193,205,210,392,125,126,116,249,252,245,142,139,153,220,218,218,223,347,339,332,326,310,329,394,418,406,278,365,369,368,368,364,363,350,359,376,363,366,329,356,310,403,311,316,235,235,242,235,215,256,192,164,52,60,60,361,329,343,329,300,307,316,318,508,372,327,230,215,214,740,685,948,889,835,672,885,787,932,867,1071,975,887,864,1038,1011,900,1038,984,914,752,718,1630,1533,1439,1384,1079,1022,12841,12841,12841,12841,12845,12845,12846,12847,12848,12848]} 1. e4 {[%emt 0:00:04]} e5 {[%emt 0:12:11]} 2. Nf3 {[%emt 0:00:08]} Nc6 {[%emt 0:00:05]} 3. Bb5 {[%emt 0:00:07]} a6 {[%emt 0:00:05]} 4. Ba4 {[%emt 0:00:06]} Bc5 {[%emt 0:00:05]} 5. O-O {[%emt 0:00:47]} d6 {[%emt 0:00:06]} 6. d4 {[%emt 0:02:16] C70: Ruy Lopez: 3...a6 4 Ba4, Norwegian and Delayed Schliemann.} b5 {[%emt 0:06:01]} (6... exd4 $11 {keeps the balance.} 7. Nxd4 Nge7) 7. dxc5 $16 {[%emt 0:01:17]} bxa4 {[%emt 0:00:02] [#]} 8. Nc3 $146 {[%emt 0:04:18] White is better.} ({Predecessor:} 8. cxd6 Qxd6 9. Qxd6 cxd6 10. Rd1 Ke7 11. Nc3 Bd7 12. a3 Na7 13. Nd5+ Kd8 14. Nb6 Rb8 15. Rxd6 {1-0 (15) De Borba,G (1718)-Ruiz,J Montevideo 2014}) 8... Nge7 {[%emt 0:00:49]} 9. cxd6 {[%emt 0:01:01]} ({Don't play} 9. Nxa4 d5 $14) 9... cxd6 {[%emt 0:00:15]} 10. h3 {[%emt 0:03:22]} O-O {[%emt 0:00:21]} 11. Nxa4 {[%emt 0:02:17]} Bb7 {[%emt 0:02:27]} 12. Be3 {[%emt 0:06:11]} f5 {[%emt 0:01:02]} 13. Ng5 {[%emt 0:05:26] White is more active.} Rf6 {[%emt 0:19:12] Inhibits Ne6.} (13... f4 $16) 14. c3 $18 {[%emt 0:09:29]} Rb8 {[%emt 0:12:43]} 15. Qb3+ {[%emt 0:01:40]} ({Not} 15. Qh5 h6 $11) 15... d5 {[%emt 0:00:55] [#]} 16. Bb6 {[%emt 0:04:28]} Qd7 {[%emt 0:22:07]} 17. Nc5 {[%emt 0:03:39]} Qd6 {[%emt 0:00:08]} 18. exd5 {[%emt 0:01:04]} Nxd5 {[%emt 0:03:40]} (18... Qxd5 19. Nd7 Qxb3 20. axb3 Rg6) 19. Bc7 $2 {[%emt 0:02:14]} Qxc5 $16 {[%emt 0:08:27]} 20. Bxb8 {[%emt 0:00:07]} Na5 {[%emt 0:00:03]} (20... Qb5 $16) 21. Qa4 $18 {[%emt 0:11:11]} Bc6 {[%emt 0:05:55] [#]} 22. b4 {[%emt 0:02:44]} (22. Ba7 $1 $18 {[%cal Oa4h4][%mdl 512] Threatens to win with Qh4!} Bxa4 23. Bxc5) 22... Bxa4 $16 {[%emt 0:02:51]} 23. bxc5 {[%emt 0:00:02]} e4 {[%emt 0:00:56]} (23... Nc6 $16) 24. Be5 $18 {[%emt 0:03:51]} Rg6 {[%emt 0:00:33]} 25. h4 {[%emt 0:00:02][%cal Of1d1]} Nc4 {[%emt 0:00:11] [#]} (25... Nc6 $142) 26. Rfd1 $1 {[%emt 0:03:37]} Bc6 {[%emt 0:00:46] [#]} (26... Bxd1 27. Rxd1) 27. Rxd5 {[%emt 0:02:44]} Bxd5 {[%emt 0:00:07]} 28. Rd1 {[%emt 0:00:02]} h6 {[%emt 0:01:30]} 29. Rxd5 {[%emt 0:00:09][%cal Rd5d8]} hxg5 {[%emt 0:00:01]} 30. hxg5 {[%emt 0:00:28][%mdl 4096] Endgame KRB-KRN} Rc6 {[%emt 0:00:18]} 31. Bd4 {[%emt 0:00:31]} g6 {[%emt 0:00:02]} 32. Rd7 {[%emt 0:01:33]} Kf8 {[%emt 0:00:21]} 33. Kf1 {[%emt 0:01:29]} Ke8 {[%emt 0:00:28]} 34. Rb7 {[%emt 0:00:25]} Kd8 {[%emt 0:01:18]} 35. Ke2 {[%emt 0:00:27]} Kc8 {[%emt 0:01:21]} 36. Rb4 {[%emt 0:00:20]} Na5 {[%emt 0:00:02]} 37. f3 {[%emt 0:00:48]} exf3+ {[%emt 0:00:37]} 38. Kxf3 {[%emt 0:00:08]} Re6 {[%emt 0:00:16]} 39. Kf2 {[%emt 0:00:34]} Nc6 {[%emt 0:00:07]} 40. Rb6 {[%emt 0:00:36]} a5 {[%emt 0:00:01]} 41. Rb1 {[%emt 0:00:57]} Re4 {[%emt 0:00:20]} 42. Re1 {[%emt 0:01:37]} Rf4+ {[%emt 0:00:06]} 43. Kg3 {[%emt 0:00:24]} (43. Kg1 $18) 43... Rg4+ $14 {[%emt 0:00:03]} 44. Kf3 {[%emt 0:00:10] Re6 is the strong threat.} Kd7 {[%emt 0:00:06][%mdl 8192] Against Re6. White now steadily converts the win.} (44... Rxg5 $14 45. Re6 Kb7) 45. Bf6 $18 {[%emt 0:05:33]} Ra4 {[%emt 0:00:22]} 46. Re2 {[%emt 0:00:46]} Rc4 {[%emt 0:00:48]} 47. Rd2+ {[%emt 0:01:11]} Kc7 {[%emt 0:00:09]} 48. Bd4 {[%emt 0:00:11]} Nd8 {[%emt 0:01:51]} (48... Kd7 {might work better.} 49. Bh8+ Kc7) 49. Kf4 {[%emt 0:02:53]} Nc6 {[%emt 0:00:59]} 50. g4 {[%emt 0:00:49]} fxg4 {[%emt 0:00:08]} 51. Kxg4 {[%emt 0:00:15]} Kd7 $2 {[%emt 0:00:05]} (51... Nxd4 52. cxd4 Kc6) 52. Kf4 {[%emt 0:00:19] White is clearly winning.} Ke6 {[%emt 0:00:24]} 53. Ke4 {[%emt 0:00:13]} Ne7 {[%emt 0:00:29]} 54. Rb2 {[%emt 0:00:58] Strongly threatening Rb6+.} Ra4 {[%emt 0:00:52]} 55. Rb6+ {[%emt 0:03:03]} Kd7 {[%emt 0:00:02]} 56. Ke5 {[%emt 0:01:34] And now Rb7+ would win.} Nc6+ {[%emt 0:01:22]} 57. Kf6 {[%emt 0:00:11]} Rxa2 {[%emt 0:00:05]} 58. Kxg6 {[%emt 0:00:14]} a4 {[%emt 0:00:14]} 59. Bf6 {[%emt 0:00:36]} a3 {[%emt 0:00:16]} 60. Ra6 {[%emt 0:00:15]} Ra1 {[%emt 0:01:46]} 61. Kf7 {[%emt 0:00:46] aiming for g6.} a2 {[%emt 0:00:38]} 62. c4 {[%emt 0:00:29]} ({Less strong is} 62. g6 Rf1 $14) 62... Nd8+ {[%emt 0:01:25]} 63. Kg8 {[%emt 0:00:23]} Rg1 {[%emt 0:00:13]} 64. c6+ {[%emt 0:03:10]} Nxc6 {[%emt 0:00:46]} 65. Rxa2 {[%emt 0:00:02] Black must now prevent Ra1.} Rg4 {[%emt 0:00:02]} 66. Kf7 {[%emt 0:01:33]} Rf4 {[%emt 0:00:43]} 67. Rd2+ {[%emt 0:00:32]} Kc8 {[%emt 0:00:36]} 68. Rd5 {[%emt 0:00:23]} Nb8 {[%emt 0:00:13]} 69. g6 {[%emt 0:01:08]} Nd7 {[%emt 0:00:01] [#]} 70. Rxd7 $1 {[%emt 0:00:01] Weighted Error Value: White=0.32/Black=0.40} 1-0

[Event "3rd VIZAG GM-Open 2022"]
[Site "Visakapatnam"]
[Date "2022.06.13"]
[Round "2.7"]
[White "Liyanage, Pesandu Rashmitha"]
[Black "Nigmatov, Ortik"]
[Result "0-1"]
[ECO "B06"]
[WhiteElo "1730"]
[BlackElo "2463"]
[Annotator "TA"]
[PlyCount "72"]
[EventDate "2022.06.13"]
[EventType "swiss"]
[EventCountry "IND"]
[SourceTitle "playchess.com"]
[Source "ChessBase"]
[SourceQuality "1"]
[TimeControl "5400+30"]

{[%evp 9,72,21,42,22,45,43,35,14,9,0,18,-4,12,12,10,16,24,0,0,0,0,0,17,8,27,0,17,0,12,-12,-41,-31,-24,-26,-31,-58,-41,-86,-80,-441,-432,-579,-546,-553,-411,-407,-418,-747,-741,-739,-722,-709,-672,-808,-720,-802,-778,-1263,-1252,-1266,-1201,-1887,-1847,-4029,-2743]} 1. d4 {[%emt 0:01:51]} g6 {[%emt 0:00:11]} 2. e4 {[%emt 0:00:12]} Bg7 {[%emt 0:00:18]} 3. Nc3 {[%emt 0:00:10]} d6 {[%emt 0:00:26]} 4. Be3 {[%emt 0:01:18]} c6 {[%emt 0:01:21]} 5. g3 {[%emt 0:04:24]} b5 {[%emt 0:01:12]} 6. Bg2 {[%emt 0:01:01] [#] B06: Modern Defence.} b4 $146 {[%emt 0:00:50]} ({Predecessor:} 6... Bb7 7. Nge2 a6 8. O-O Nd7 9. f4 Nb6 10. b3 b4 11. Nb1 c5 12. Nd2 Nf6 13. h3 Nfd7 {½-½ (74) Kharchenko,B (2357)-Matjushin,G (2459) Evpatoria 2006}) 7. Na4 {[%emt 0:04:20]} Nf6 {[%emt 0:01:26]} 8. h3 {[%emt 0:03:14] White is slightly better.} O-O {[%emt 0:05:08]} 9. Qd2 {[%emt 0:04:30]} a5 {[%emt 0:01:19]} 10. a3 {[%emt 0:01:44]} Na6 {[%emt 0:01:31]} 11. Ne2 {[%emt 0:02:41]} Bb7 {[%emt 0:01:32][%cal Oc6c5]} 12. O-O {[%emt 0:11:07]} c5 {[%emt 0:14:26]} 13. d5 {[%emt 0:13:10]} Nd7 {[%emt 0:18:47]} 14. f4 {[%emt 0:18:16]} Nb6 {[%emt 0:00:13]} 15. Nxb6 {[%emt 0:04:26]} Qxb6 {[%emt 0:00:05]} 16. Rab1 {[%emt 0:00:28]} Nc7 {[%emt 0:02:32]} 17. a4 {[%emt 0:04:39]} b3 {[%emt 0:00:32]} 18. c3 {[%emt 0:01:21]} f5 {[%emt 0:03:49]} 19. g4 {[%emt 0:21:08]} fxe4 {[%emt 0:00:45]} 20. Bxe4 {[%emt 0:00:00]} e6 {[%emt 0:00:33][%cal Rc7d5,Be7e6,Be6d5,Bd5d4][%mdl 32]} 21. f5 $1 {[%emt 0:00:00]} exd5 {[%emt 0:00:51]} 22. Bg2 {[%emt 0:00:00]} Rae8 {[%emt 0:19:36] Hoping for ...gxf5.} 23. fxg6 {[%emt 0:00:00]} hxg6 {[%emt 0:00:05][%cal Od5d4] [#] And now ...d4! would win.} 24. Nf4 $2 {[%emt 0:00:00][%mdl 8192] Loses the game.} (24. Bh6 $17 {is more resistant.}) 24... d4 $19 {[%emt 0:00:36]} 25. Bxb7 {[%emt 0:00:00]} Qxb7 {[%emt 0:00:29]} ({Inferior is} 25... Rxe3 26. Nd5 Qxb7 27. Nxe3 $19) 26. Bf2 {[%emt 0:00:50]} Qe4 {[%emt 0:01:21]} 27. Bh4 {[%emt 0:00:50]} Qc2 {[%emt 0:01:12]} 28. Rbd1 {[%emt 0:01:24]} (28. Qxc2 $142 bxc2 29. Rbc1 Rxf4 30. Rxf4) 28... Qxd2 {[%emt 0:02:57] Black is clearly winning.} 29. Rxd2 {[%emt 0:00:01]} dxc3 {[%emt 0:03:36]} 30. bxc3 {[%emt 0:00:11]} Bxc3 {[%emt 0:00:08]} 31. Rxd6 {[%emt 0:00:12]} Be5 {[%emt 0:00:13][%csl LRd6,LRf4]} 32. Rxg6+ {[%emt 0:01:06]} Kh7 {[%emt 0:00:49]} 33. Bg5 {[%emt 0:01:05]} Bxf4 {[%emt 0:00:43]} 34. Rh6+ {[%emt 0:00:22]} Kg7 {[%emt 0:00:06]} 35. Rc6 {[%emt 0:01:19]} Bxg5 {[%emt 0:00:38]} 36. Rxc7+ {[%emt 0:00:06]} Re7 {[%emt 0:00:09] Weighted Error Value: White=0.90/Black=0.10 (very precise)} 0-1